bitfinex-derivatives/quotes_BTCF0:USTF0_20241109
["timestamp","ask_amount","ask_price","bid_price","bid_amount"]
[1731167995242,0.43363505,76370.0,76369.0,0.14857066]
[1731167995856,0.43621953,76370.0,76369.0,0.14857066]
[1731167997950,0.43621953,76370.0,76369.0,0.14857009]
[1731167998544,0.43621953,76370.0,76369.0,0.065442]
[1731167998755,0.43621953,76370.0,76369.0,0.14856257]
[1731167999253,0.07541953,76370.0,76369.0,0.14856257]
[1731167999450,0.07541953,76370.0,76369.0,0.08312057]
[1731167999451,0.43621953,76370.0,76369.0,0.08312057]
[1731167999949,0.46178351,76370.0,76369.0,0.08312057]
[1731168000157,0.46178351,76370.0,76365.0,0.0061]
[1731168000759,0.43621953,76370.0,76367.0,0.065443]
[1731168000962,0.02556389,76369.0,76367.0,0.065443]
[1731168001469,0.00258448,76368.0,76367.0,0.065443]
[1731168002149,0.00258448,76368.0,76366.0,0.37639645]
[1731168002451,0.3608,76370.0,76366.0,0.18215826]
[1731168002652,0.00258448,76367.0,76366.0,0.18215826]
[1731168006549,0.36338448,76367.0,76366.0,0.18215826]
[1731168006750,0.42882748,76367.0,76366.0,0.18215826]
[1731168007471,0.42882748,76367.0,76366.0,0.27381979]
[1731168008561,0.42882748,76367.0,76366.0,0.34674014]
[1731168008763,0.42882748,76367.0,76366.0,0.25507861]
[1731168009656,0.42882748,76367.0,76366.0,0.18215826]
[1731168010262,0.45987108,76367.0,76366.0,0.18215826]
[1731168010857,0.45987108,76367.0,76365.0,0.07292035]
[1731168011460,0.39442808,76367.0,76365.0,0.07292035]
[1731168011669,0.00258448,76366.0,76365.0,0.07292035]
[1731168012356,0.00258448,76366.0,76365.0,0.36633739]
[1731168012754,0.00258448,76366.0,76365.0,0.36633732]
[1731168013057,0.3918436,76367.0,76365.0,0.49629809]
[1731168013058,0.34858507,76367.0,76365.0,0.49629809]
[1731168013263,0.34858507,76367.0,76366.0,0.42337774]
[1731168013566,0.34858507,76367.0,76366.0,0.49629809]
[1731168013756,0.34858507,76367.0,76366.0,0.36633732]
[1731168013956,0.31754147,76367.0,76366.0,0.36633732]
[1731168015364,0.31754147,76367.0,76366.0,0.49573142]
[1731168015565,0.31154147,76367.0,76366.0,0.49573142]
[1731168016669,0.426242,76369.0,76366.0,0.49573142]
[1731168016868,0.426242,76369.0,76367.0,0.17986002]
[1731168017168,0.426242,76369.0,76366.0,0.07292035]
[1731168017169,0.426242,76369.0,76368.0,0.17986002]
[1731168019270,0.426242,76369.0,76368.0,0.08205436]
[1731168020363,0.3608,76369.0,76368.0,0.08205436]
[1731168021162,0.3608,76369.0,76368.0,0.08220884]
[1731168026273,0.3608,76369.0,76368.0,0.08218905]
[1731168027682,0.3608,76369.0,76368.0,0.1801563]
[1731168028576,0.3608,76369.0,76368.0,0.18017972]
[1731168028772,0.3608,76369.0,76368.0,0.08218905]
[1731168028976,0.3608,76369.0,76368.0,0.18016763]
[1731168031370,0.3608,76369.0,76368.0,0.09797858]
[1731168031576,0.3608,76369.0,76368.0,0.18017693]
[1731168038184,0.426242,76369.0,76368.0,0.08219894]
[1731168043286,0.426242,76369.0,76368.0,0.08219894]
[1731168044494,0.065442,76369.0,76368.0,0.08219894]
[1731168044686,0.426242,76369.0,76368.0,0.08219894]
[1731168045793,0.426242,76369.0,76368.0,0.1802471]
[1731168057519,0.065442,76369.0,76368.0,0.18038664]
[1731168057720,0.426242,76369.0,76368.0,0.18038664]
[1731168058114,0.426242,76369.0,76368.0,0.18038365]
[1731168061519,0.426242,76369.0,76368.0,0.1803632]
[1731168062026,0.065442,76369.0,76368.0,0.1803632]
[1731168062523,0.426242,76369.0,76368.0,0.1803632]
[1731168062719,0.065442,76369.0,76368.0,0.1803632]
[1731168063032,0.426242,76369.0,76368.0,0.1803632]
[1731168066820,0.426242,76369.0,76368.0,0.2458371]
[1731168068221,0.3608,76369.0,76368.0,0.2458371]
[1731168069028,0.3608,76369.0,76368.0,0.31875745]
[1731168072034,0.3608,76369.0,76368.0,0.31940125]
[1731168077046,0.3608,76369.0,76368.0,0.2463676]
[1731168081939,0.3608,76369.0,76368.0,0.065442]
[1731168082140,0.3608,76369.0,76368.0,0.24593882]
[1731168086142,0.3608,76369.0,76368.0,0.14778688]
[1731168088253,0.06544,76371.0,76368.0,0.14778688]
[1731168088440,0.06544,76371.0,76370.0,0.07292035]
[1731168088636,0.42624,76371.0,76370.0,0.15526523]
[1731168091354,0.42624,76371.0,76370.0,0.08234488]
[1731168091546,0.42624,76371.0,76370.0,0.15526523]
[1731168092853,0.06544,76371.0,76370.0,0.15526523]
[1731168093053,0.42624,76371.0,76370.0,0.15526523]
[1731168096347,0.42624,76371.0,76370.0,0.08234488]
[1731168096541,0.42624,76371.0,76370.0,0.15526523]
[1731168097747,0.42624,76371.0,76370.0,0.15523556]
[1731168098355,0.06544,76371.0,76370.0,0.15523556]
[1731168098548,0.42624,76371.0,76370.0,0.15523556]
[1731168100159,0.3608,76371.0,76370.0,0.15523556]
[1731168100457,0.3608,76371.0,76370.0,0.22067656]
[1731168100661,0.09112,76372.0,76370.0,0.22067656]
[1731168100858,0.09112,76372.0,76371.0,0.14775521]
[1731168102750,0.09112,76372.0,76371.0,0.06544]
[1731168102944,0.09112,76372.0,76371.0,0.14778433]
[1731168106663,0.09112,76372.0,76371.0,0.2263566]
[1731168106859,0.09112,76372.0,76371.0,0.14778433]
[1731168107057,0.09112,76372.0,76371.0,0.2263566]
[1731168107868,0.09112,76372.0,76371.0,0.14778433]
[1731168109867,0.45192,76372.0,76371.0,0.14778433]
[1731168110656,0.09112,76372.0,76371.0,0.14778433]
[1731168110958,0.45192,76372.0,76371.0,0.14778433]
[1731168113761,0.517359,76372.0,76371.0,0.14778433]
[1731168114862,0.156559,76372.0,76371.0,0.14778433]
[1731168115077,0.517359,76372.0,76371.0,0.14778433]
[1731168118571,0.517359,76372.0,76371.0,0.14788297]
[1731168121158,0.517279,76372.0,76371.0,0.14788297]
[1731168122362,0.517279,76372.0,76371.0,0.06544]
[1731168122564,0.517279,76372.0,76371.0,0.14791762]
[1731168124172,0.517279,76372.0,76371.0,0.24645862]
[1731168127761,0.517279,76372.0,76371.0,0.24671876]
[1731168134975,0.156479,76372.0,76371.0,0.24671876]
[1731168135177,0.517279,76372.0,76371.0,0.24671876]
[1731168136384,0.426239,76372.0,76371.0,0.24671876]
[1731168136687,0.3608,76372.0,76371.0,0.24671876]
[1731168139793,0.45184,76372.0,76371.0,0.24671876]
[1731168141095,0.09104,76372.0,76371.0,0.24671876]
[1731168141973,0.09104,76372.0,76371.0,0.18127876]
[1731168146100,0.09104,76372.0,76371.0,0.24671876]
[1731168147392,0.09104,76372.0,76371.0,0.24739307]
[1731168150489,0.09104,76372.0,76371.0,0.32031342]
[1731168151889,0.09104,76372.0,76371.0,0.24739307]
[1731168153601,0.09104,76372.0,76371.0,0.24842906]
[1731168155011,0.09104,76372.0,76371.0,0.24902091]
[1731168155794,0.09104,76372.0,76371.0,0.14919188]
[1731168157396,0.45184,76372.0,76371.0,0.14919188]
[1731168158691,0.45184,76372.0,76371.0,0.06544]
[1731168158888,0.45184,76372.0,76371.0,0.14924434]
[1731168159299,0.517279,76372.0,76371.0,0.08380434]
[1731168160195,0.156479,76372.0,76371.0,0.08380434]
[1731168160402,0.517279,76372.0,76371.0,0.08380434]
[1731168163793,0.517279,76372.0,76371.0,0.08367742]
[1731168164694,0.156479,76372.0,76371.0,0.08367742]
[1731168164893,0.517279,76372.0,76371.0,0.08367742]
[1731168167811,0.517239,76372.0,76371.0,0.08367742]
[1731168168113,0.156439,76372.0,76371.0,0.08367742]
[1731168168414,0.517239,76372.0,76371.0,0.08367742]
[1731168169106,0.517239,76372.0,76371.0,0.15676649]
[1731168169517,0.156439,76372.0,76371.0,0.15676649]
[1731168169809,0.517239,76372.0,76371.0,0.15676649]
[1731168170010,0.517239,76372.0,76371.0,0.23534028]
[1731168171002,0.517239,76372.0,76371.0,0.15676649]
[1731168171211,0.517239,76372.0,76371.0,0.23532745]
[1731168171511,0.517239,76372.0,76371.0,0.23532808]
[1731168173403,0.156439,76372.0,76371.0,0.16240773]
[1731168173601,0.517239,76372.0,76371.0,0.23532808]
[1731168174007,0.517239,76372.0,76371.0,0.23526253]
[1731168175316,0.517239,76372.0,76371.0,0.23526445]
[1731168175508,0.517239,76372.0,76371.0,0.15670094]
[1731168179315,0.156439,76372.0,76371.0,0.15663842]
[1731168179516,0.517239,76372.0,76371.0,0.15663842]
[1731168182321,0.3608,76381.0,76371.0,0.18346401]
[1731168182518,0.3608,76381.0,76380.0,0.28983903]
[1731168182712,0.0061,76385.0,76381.0,0.065431]
[1731168182713,0.3608,76382.0,76381.0,0.065431]
[1731168183021,0.3608,76382.0,76381.0,0.14914907]
[1731168183929,0.3608,76382.0,76381.0,0.22206942]
[1731168185519,0.42623,76382.0,76381.0,0.08371807]
[1731168185723,0.42623,76382.0,76381.0,0.06540339]
[1731168185920,0.3608,76382.0,76380.0,0.06540487]
[1731168186115,0.065432,76380.0,76379.0,0.06540487]
[1731168186315,0.13835235,76380.0,76379.0,0.14887289]
[1731168186517,0.13835235,76380.0,76379.0,0.06540487]
[1731168187025,0.13835235,76380.0,76379.0,0.14882192]
[1731168187416,0.13835235,76380.0,76379.0,0.06540487]
[1731168187417,0.49915235,76380.0,76379.0,0.06540487]
[1731168188416,0.49915235,76380.0,76379.0,0.1487063]
[1731168188926,0.13835235,76380.0,76379.0,0.08330143]
[1731168189226,0.426232,76380.0,76379.0,0.14870262]
[1731168191320,0.065432,76380.0,76379.0,0.14870262]
[1731168191521,0.426232,76380.0,76379.0,0.14870262]
[1731168193132,0.065432,76380.0,76379.0,0.14870262]
[1731168193327,0.426232,76380.0,76379.0,0.14864917]
[1731168193727,0.426232,76380.0,76379.0,0.08324798]
[1731168194023,0.426232,76380.0,76379.0,0.15616833]
[1731168196837,0.3608,76380.0,76379.0,0.15616833]
[1731168197524,0.3608,76380.0,76379.0,0.29452168]
[1731168197719,0.09096,76381.0,76379.0,0.22908868]
[1731168197918,0.09096,76381.0,76380.0,0.22714777]
[1731168198117,0.09741241,76386.0,76380.0,0.22714777]
[1731168198329,0.18837241,76386.0,76385.0,0.13831]
[1731168198827,0.18837241,76386.0,76385.0,0.07292035]
[1731168200532,0.18837241,76386.0,76384.0,0.06538965]
[1731168200533,0.12294541,76386.0,76384.0,0.06538965]
[1731168200741,0.12294541,76386.0,76381.0,0.0061]
[1731168200742,0.06543,76382.0,76381.0,0.0061]
[1731168201029,0.07292035,76382.0,76379.0,0.06538965]
[1731168201231,0.07292035,76382.0,76380.0,0.08319868]
[1731168201419,0.13835035,76382.0,76381.0,0.16627646]
[1731168201735,0.13835035,76382.0,76381.0,0.06537936]
[1731168201928,0.07292035,76382.0,76377.0,0.0061]
[1731168202134,0.43372035,76378.0,76377.0,0.0061]
[1731168202323,0.43372035,76378.0,76374.0,0.065437]
[1731168204928,0.49915535,76378.0,76374.0,0.065437]
[1731168205136,0.49915535,76378.0,76377.0,0.07846567]
[1731168205340,0.59011435,76378.0,76377.0,0.08317438]
[1731168205635,0.59011435,76378.0,76375.0,0.06539833]
[1731168205636,0.52468035,76378.0,76375.0,0.06539833]
[1731168205831,0.065436,76375.0,76374.0,0.06539833]
[1731168206036,0.07292035,76376.0,76373.0,0.07149833]
[1731168206037,0.065437,76374.0,76373.0,0.07149833]
[1731168206229,0.065437,76374.0,76373.0,0.14890769]
[1731168208641,0.065437,76374.0,76373.0,0.06539833]
[1731168210635,0.065437,76374.0,76369.0,0.071541]
[1731168210636,0.065437,76374.0,76372.0,0.06539833]
[1731168210830,0.065437,76374.0,76373.0,0.02618726]
[1731168222434,0.156357,76374.0,76373.0,0.02618726]
[1731168225031,0.156357,76374.0,76373.0,0.09158559]
[1731168226745,0.156357,76374.0,76373.0,0.17529546]
[1731168227138,0.517157,76374.0,76373.0,0.17529546]
[1731168227334,0.517157,76374.0,76373.0,0.10989713]
[1731168230145,0.156357,76374.0,76373.0,0.10989713]
[1731168230447,0.517157,76374.0,76373.0,0.10989713]
[1731168231350,0.45172,76374.0,76373.0,0.1883628]
[1731168231533,0.45172,76374.0,76373.0,0.10989713]
[1731168234047,0.09092,76374.0,76373.0,0.10989713]
[1731168234746,0.09092,76374.0,76373.0,0.1883628]
[1731168234951,0.3608,76376.0,76374.0,0.065437]
[1731168235244,0.3608,76376.0,76375.0,0.08366112]
[1731168235458,0.45172,76376.0,76375.0,0.08366112]
[1731168238547,0.45172,76376.0,76374.0,0.065437]
[1731168238742,0.45172,76376.0,76375.0,0.08361709]
[1731168240250,0.45172,76376.0,76375.0,0.08360895]
[1731168240543,0.45172,76376.0,76375.0,0.16207462]
[1731168244146,0.45172,76376.0,76375.0,0.16205672]
[1731168245546,0.52464035,76376.0,76375.0,0.16205672]
[1731168245853,0.59007635,76376.0,76375.0,0.16205672]
[1731168247146,0.59007635,76376.0,76375.0,0.14902705]
[1731168249248,0.59007635,76376.0,76375.0,0.065436]
[1731168249458,0.59007635,76376.0,76375.0,0.14903761]
[1731168252554,0.59007635,76376.0,76375.0,0.22750328]
[1731168252752,0.22927635,76376.0,76375.0,0.22750328]
[1731168252953,0.59007635,76376.0,76375.0,0.22750328]
[1731168254557,0.59007635,76376.0,76375.0,0.22747497]
[1731168255557,0.59007635,76376.0,76375.0,0.22747734]
[1731168256459,0.59007635,76376.0,76375.0,0.14901167]
[1731168258063,0.59007635,76376.0,76375.0,0.08357567]
[1731168259560,0.59007635,76376.0,76375.0,0.08362219]
[1731168266878,0.45172,76376.0,76375.0,0.14905819]
[1731168267563,0.3608,76376.0,76375.0,0.14905819]
[1731168267764,0.45172,76376.0,76375.0,0.14905819]
[1731168268871,0.45172,76376.0,76375.0,0.14930673]
[1731168269862,0.3608,76376.0,76375.0,0.14930673]
[1731168270228,0.45172,76376.0,76375.0,0.14924512]
[1731168270761,0.45172,76376.0,76375.0,0.22782535]
[1731168270958,0.45172,76376.0,76375.0,0.14924512]
[1731168271172,0.09092,76376.0,76375.0,0.14924512]
[1731168271372,0.09092,76376.0,76375.0,0.22781852]
[1731168272473,0.09092,76376.0,76375.0,0.14924512]
[1731168275266,0.39250783,76378.0,76377.0,0.065435]
[1731168275468,0.48274783,76378.0,76377.0,0.14926274]
[1731168276482,0.48274783,76378.0,76377.0,0.08382774]
[1731168276483,0.54818183,76378.0,76377.0,0.08382774]
[1731168278769,0.54818183,76378.0,76377.0,0.06547197]
[1731168280074,0.48274783,76378.0,76376.0,0.13090697]
[1731168280274,0.13835535,76377.0,76376.0,0.13090697]
[1731168280475,0.13835535,76377.0,76376.0,0.21498969]
[1731168280875,0.13835535,76377.0,76376.0,0.14951772]
[1731168281180,0.13835535,76377.0,76376.0,0.21498129]
[1731168281898,0.13835535,76377.0,76376.0,0.14951772]
[1731168282089,0.13835535,76377.0,76376.0,0.21497407]
[1731168282273,0.13835535,76377.0,76376.0,0.13089135]
[1731168282783,0.13835535,76377.0,76376.0,0.21499634]
[1731168283787,0.13835535,76377.0,76376.0,0.21503544]
[1731168284698,0.13835535,76377.0,76376.0,0.13089135]
[1731168285683,0.13835535,76377.0,76376.0,0.065435]
[1731168286272,0.13835535,76377.0,76376.0,0.13089135]
[1731168289977,0.13835535,76377.0,76376.0,0.065435]
[1731168290174,0.13835535,76377.0,76375.0,0.06545635]
[1731168290379,0.065436,76376.0,76375.0,0.06545635]
[1731168290580,0.065436,76376.0,76375.0,0.14954227]
[1731168290975,0.065436,76376.0,76375.0,0.1495564]
[1731168291181,0.065436,76375.0,76374.0,0.07154362]
[1731168291392,0.065436,76375.0,76374.0,0.15566376]
[1731168291782,0.065436,76375.0,76374.0,0.15566259]
[1731168291979,0.065436,76375.0,76374.0,0.09022014]
[1731168292184,0.13835635,76375.0,76374.0,0.09022014]
[1731168292482,0.13835635,76375.0,76374.0,0.15566142]
[1731168292878,0.13835635,76375.0,76374.0,0.07154128]
[1731168293080,0.13835635,76375.0,76374.0,0.15569335]
[1731168294100,0.49915635,76375.0,76374.0,0.15569335]
[1731168294399,0.59007635,76375.0,76374.0,0.15569335]
[1731168295078,0.59007635,76375.0,76374.0,0.0061]
[1731168296278,0.59007635,76375.0,76374.0,0.15564119]
[1731168298988,0.59007635,76375.0,76374.0,0.07154128]
[1731168299590,0.22927635,76375.0,76374.0,0.07154128]
[1731168299797,0.59007635,76375.0,76374.0,0.07154128]
[1731168299998,0.22927635,76375.0,76374.0,0.07154128]
[1731168300187,0.59007635,76375.0,76374.0,0.07154128]
[1731168300496,0.59007635,76375.0,76374.0,0.15564867]
[1731168300804,0.22927635,76375.0,76374.0,0.15564867]
[1731168300986,0.59007635,76375.0,76374.0,0.15564867]
[1731168301902,0.78648925,76375.0,76374.0,0.15564867]
[1731168302286,0.78648925,76375.0,76374.0,0.07154128]
[1731168304801,0.78648925,76375.0,76374.0,0.0061]
[1731168307200,1.14728925,76375.0,76374.0,0.0061]
[1731168311507,1.16931392,76375.0,76374.0,0.0061]
[1731168315201,1.16931392,76375.0,76374.0,0.03228692]
[1731168318006,1.14728925,76375.0,76374.0,0.03228692]
[1731168320616,0.42568925,76375.0,76374.0,0.03228692]
[1731168321010,1.14728925,76375.0,76374.0,0.03228692]
[1731168322112,1.14728925,76375.0,76374.0,0.05847384]
[1731168323330,1.14728925,76375.0,76374.0,0.11082828]
[1731168323510,0.42568925,76375.0,76374.0,0.05847384]
[1731168323708,1.14728925,76375.0,76374.0,0.11082828]
[1731168324200,0.42568925,76375.0,76374.0,0.11082828]
[1731168324406,1.14728925,76375.0,76374.0,0.11082828]
[1731168327721,1.14728925,76375.0,76374.0,0.05847384]
[1731168328418,0.42568925,76375.0,76374.0,0.05847384]
[1731168328617,1.14728925,76375.0,76374.0,0.05847384]
[1731168330118,1.17076877,76375.0,76374.0,0.05847384]
[1731168331319,0.44916877,76375.0,76374.0,0.05847384]
[1731168331523,1.17076877,76375.0,76374.0,0.05847384]
[1731168332914,1.17076877,76375.0,76374.0,0.08466076]
[1731168333626,1.2202096,76375.0,76374.0,0.08466076]
[1731168333930,1.14728925,76375.0,76374.0,0.08466076]
[1731168334632,1.24541382,76375.0,76374.0,0.01314776]
[1731168334827,1.17997782,76375.0,76359.0,0.06547033]
[1731168335022,0.85996935,76360.0,76359.0,0.06547033]
[1731168335337,0.85996935,76360.0,76355.0,0.0313]
[1731168335338,0.06545,76359.0,76358.0,0.06547033]
[1731168335724,0.09086612,76359.0,76358.0,0.14774366]
[1731168336033,0.02541612,76359.0,76356.0,0.06547033]
[1731168336214,0.13837235,76357.0,76356.0,0.06547033]
[1731168336420,0.02540825,76357.0,76356.0,0.13837335]
[1731168336658,0.72228,76360.0,76356.0,0.15504387]
[1731168336829,0.09088,76359.0,76357.0,0.08212352]
[1731168337024,0.09088,76359.0,76358.0,0.16068792]
[1731168337426,0.09088,76359.0,76358.0,0.08212352]
[1731168340027,0.15633,76359.0,76358.0,0.08212352]
[1731168341036,0.15633,76359.0,76358.0,0.08230606]
[1731168341427,0.18401692,76359.0,76358.0,0.08230606]
[1731168342734,0.18401692,76359.0,76355.0,0.1098644]
[1731168342735,0.19148727,76359.0,76357.0,0.06541601]
[1731168342932,0.36004398,76359.0,76354.0,0.06541601]
[1731168343238,0.065454,76354.0,76353.0,0.06541601]
[1731168343441,0.09338619,76354.0,76352.0,0.06541601]
[1731168343640,0.38873219,76353.0,76352.0,0.06541601]
[1731168343942,0.38873219,76353.0,76352.0,0.14803019]
[1731168344132,0.065456,76352.0,76351.0,0.00662681]
[1731168344338,0.09338819,76352.0,76351.0,0.00662681]
[1731168344943,0.22925635,76352.0,76351.0,0.00662681]
[1731168346640,0.156336,76352.0,76351.0,0.00662681]
[1731168346847,0.3608,76353.0,76352.0,0.065456]
[1731168347147,0.45168,76353.0,76352.0,0.065456]
[1731168347353,0.09088,76353.0,76352.0,0.14776977]
[1731168348236,0.09088,76353.0,76352.0,0.21313288]
[1731168348544,0.09088,76353.0,76352.0,0.21338544]
[1731168349330,0.09088,76353.0,76352.0,0.28630579]
[1731168349639,0.09088,76353.0,76352.0,0.28628541]
[1731168350832,0.09088,76353.0,76352.0,0.2861971]
[1731168351033,0.09088,76353.0,76352.0,0.22083399]
[1731168351433,0.09088,76353.0,76352.0,0.28619559]
[1731168351736,0.09088,76353.0,76352.0,0.20373795]
[1731168352045,0.09088,76353.0,76352.0,0.28617825]
[1731168352346,0.09088,76353.0,76352.0,0.22292115]
[1731168354942,0.09088,76353.0,76352.0,0.1500008]
[1731168355246,0.09088,76353.0,76352.0,0.22292115]
[1731168360341,0.09088,76353.0,76352.0,0.1500008]
[1731168361046,0.09282572,76353.0,76352.0,0.15009316]
[1731168364049,0.09282572,76353.0,76352.0,0.22865756]
[1731168364250,0.09282572,76353.0,76352.0,0.15009316]
[1731168364654,0.09282572,76353.0,76352.0,0.22865756]
[1731168365147,0.09282572,76353.0,76352.0,0.1461249]
[1731168365346,0.09282572,76353.0,76352.0,0.22865703]
[1731168366354,0.16574607,76353.0,76352.0,0.3111906]
[1731168366553,0.16574607,76353.0,76352.0,0.2326262]
[1731168367357,0.16574607,76353.0,76352.0,0.15009263]
[1731168368270,0.09282572,76353.0,76352.0,0.15009263]
[1731168369456,0.09282572,76353.0,76352.0,0.0675605]
[1731168372260,0.09282572,76353.0,76352.0,0.1502617]
[1731168378165,0.09282572,76353.0,76352.0,0.24899018]
[1731168378464,0.09314572,76353.0,76352.0,0.24899018]
[1731168379153,0.11891425,76353.0,76352.0,0.24899018]
[1731168379353,0.09314572,76353.0,76352.0,0.24899018]
[1731168379866,0.11891442,76353.0,76352.0,0.24899018]
[1731168380055,0.09314572,76353.0,76352.0,0.24899018]
[1731168382166,0.09314572,76353.0,76352.0,0.1502617]
[1731168383474,0.09314572,76353.0,76352.0,0.22885263]
[1731168383475,0.00194572,76353.0,76352.0,0.22885263]
[1731168383663,0.00194572,76353.0,76352.0,0.5431817]
[1731168384475,0.00194572,76353.0,76352.0,0.64189647]
[1731168384872,0.00194572,76353.0,76352.0,0.67379647]
[1731168385777,0.00194572,76353.0,76352.0,0.28087647]
[1731168385975,0.00194572,76353.0,76352.0,0.35379682]
[1731168386369,0.00194572,76353.0,76352.0,0.35440277]
[1731168389075,0.00194572,76353.0,76352.0,0.74732277]
[1731168390269,0.00194572,76353.0,76352.0,0.35440277]
[1731168394965,0.00194572,76353.0,76352.0,0.2554215]
[1731168395168,0.00194572,76353.0,76352.0,0.35423506]
[1731168396675,0.0020363,76355.0,76352.0,0.28875595]
[1731168396869,0.0020363,76355.0,76354.0,0.065454]
[1731168397070,0.0020363,76355.0,76354.0,0.2472851]
[1731168400282,0.0020363,76355.0,76354.0,0.14840759]
[1731168402579,0.0020363,76355.0,76354.0,0.24741808]
[1731168411784,0.0020363,76355.0,76354.0,0.14840759]
[1731168412089,0.0020363,76355.0,76354.0,0.22701269]
[1731168415585,0.0020363,76355.0,76354.0,0.14847001]
[1731168417489,0.0020363,76355.0,76354.0,0.24744565]
[1731168417684,0.0020363,76355.0,76354.0,0.14847001]
[1731168420082,0.0020363,76355.0,76354.0,0.24735776]
[1731168420487,0.0020363,76355.0,76354.0,0.14847001]
[1731168420686,0.0020363,76355.0,76354.0,0.24735776]
[1731168420890,0.0020363,76355.0,76354.0,0.14847001]
[1731168421596,0.0020363,76355.0,76354.0,0.24733134]
[1731168422582,0.0020363,76355.0,76354.0,0.32025169]
[1731168423200,0.0020363,76355.0,76354.0,0.22139036]
[1731168423396,0.0020363,76355.0,76354.0,0.32031673]
[1731168423793,0.0020363,76355.0,76354.0,0.32030411]
[1731168423992,0.0020363,76355.0,76354.0,0.22139036]
[1731168425290,0.3628363,76355.0,76354.0,0.08301601]
[1731168425595,0.4282903,76355.0,76354.0,0.16159206]
[1731168425794,0.4282903,76355.0,76354.0,0.16159213]
[1731168426194,0.4282903,76355.0,76354.0,0.16154352]
[1731168426590,0.4282903,76355.0,76354.0,0.0829674]
[1731168426801,0.4282903,76355.0,76354.0,0.16154352]
[1731168426993,0.4282903,76355.0,76354.0,0.0829674]
[1731168428104,0.4282903,76355.0,76354.0,0.16152057]
[1731168428900,0.4282903,76355.0,76354.0,0.0829674]
[1731168430298,0.4282903,76355.0,76352.0,0.0021045]
[1731168430497,0.13837535,76353.0,76352.0,0.0021045]
[1731168434310,0.3628363,76355.0,76352.0,0.0675605]
[1731168434807,0.3628363,76355.0,76352.0,0.09375496]
[1731168436612,0.3628363,76355.0,76354.0,0.07854469]
[1731168438209,0.3628363,76355.0,76353.0,0.08248585]
[1731168440504,0.4282903,76355.0,76353.0,0.08248585]
[1731168441505,0.4282903,76355.0,76354.0,0.08248585]
[1731168444106,0.4282903,76355.0,76354.0,0.18070202]
[1731168444310,0.4282903,76355.0,76354.0,0.08248585]
[1731168446520,0.45569769,76355.0,76354.0,0.08248585]
[1731168447414,0.50121065,76355.0,76354.0,0.06545226]
[1731168447611,0.50121065,76355.0,76353.0,0.02619412]
[1731168447612,0.69829737,76355.0,76353.0,0.02619412]
[1731168449713,0.065454,76354.0,76353.0,0.02619412]
[1731168450120,0.26287161,76354.0,76353.0,0.02619412]
[1731168451821,0.62367161,76354.0,76353.0,0.02619412]
[1731168452722,0.6522253,76354.0,76353.0,0.02619412]
[1731168455824,0.69659196,76354.0,76353.0,0.07852973]
[1731168456023,0.72517924,76354.0,76353.0,0.02619412]
[1731168456223,0.65225889,76354.0,76353.0,0.02619412]
[1731168456428,0.62367161,76354.0,76353.0,0.06544729]
[1731168457126,0.62367161,76354.0,76353.0,0.02619412]
[1731168457314,0.66719319,76354.0,76353.0,0.02619412]
[1731168457722,0.65205525,76354.0,76353.0,0.02619412]
[1731168458027,0.63880639,76354.0,76353.0,0.02619412]
[1731168458229,0.72496966,76354.0,76353.0,0.02619412]
[1731168458529,0.69659196,76354.0,76353.0,0.02619412]
[1731168459719,0.79031196,76354.0,76353.0,0.02619412]
[1731168462128,0.81863871,76354.0,76353.0,0.06542698]
[1731168462833,0.81863871,76354.0,76353.0,0.02619412]
[1731168465037,0.72491871,76354.0,76353.0,0.02619412]
[1731168465233,0.81867871,76354.0,76353.0,0.02619412]
[1731168468336,0.79035196,76354.0,76353.0,0.02619412]
[1731168470447,0.79035196,76354.0,76353.0,0.07852973]
[1731168473949,0.81690552,76350.0,76349.0,0.00480246]
[1731168474444,0.84515169,76350.0,76349.0,0.00110295]
[1731168474642,0.39292,76349.0,76341.0,0.00435333]
[1731168474853,0.69452241,76350.0,76341.0,0.00435333]
[1731168474854,0.2113047,76343.0,76341.0,0.00435333]
[1731168475044,0.32040817,76343.0,76341.0,0.00435333]
[1731168475238,0.51654096,76343.0,76341.0,0.00435333]
[1731168475851,0.54501123,76343.0,76342.0,0.04722081]
[1731168476347,0.54501123,76343.0,76342.0,0.00797242]
[1731168476556,0.54472352,76343.0,76342.0,0.00797242]
[1731168476750,0.54472352,76343.0,76342.0,0.04722066]
[1731168476954,0.54472352,76343.0,76342.0,0.00797242]
[1731168477759,0.61987289,76343.0,76342.0,0.00797242]
[1731168481165,0.065465,76342.0,76341.0,0.00435333]
[1731168481468,0.66559008,76342.0,76341.0,0.00435333]
[1731168482266,0.69639008,76342.0,76341.0,0.00435333]
[1731168483175,0.69656868,76342.0,76341.0,0.00435333]
[1731168483471,0.69656733,76342.0,76341.0,0.00435333]
[1731168483664,0.78972733,76342.0,76341.0,0.00435333]
[1731168484066,0.77449432,76342.0,76341.0,0.00435333]
[1731168484263,0.78976574,76342.0,76341.0,0.00435333]
[1731168484460,0.78976574,76342.0,76340.0,0.00302278]
[1731168484665,0.06547,76336.0,76335.0,0.03959987]
[1731168484860,0.25505239,76336.0,76335.0,0.10507087]
[1731168485271,0.25494527,76336.0,76335.0,0.06582263]
[1731168485666,0.23978097,76336.0,76335.0,0.10503211]
[1731168486665,0.23978097,76336.0,76335.0,0.10502818]
[1731168487875,0.23978097,76336.0,76335.0,0.06582263]
[1731168488075,0.2113107,76336.0,76335.0,0.06582263]
[1731168488470,0.23863722,76336.0,76335.0,0.06582263]
[1731168488663,0.2113107,76336.0,76335.0,0.06582263]
[1731168488868,0.3044707,76336.0,76335.0,0.06582263]
[1731168489065,0.2113107,76336.0,76335.0,0.06582263]
[1731168489279,0.2390007,76336.0,76335.0,0.06582263]
[1731168494375,0.1458407,76336.0,76335.0,0.06582263]
[1731168494582,0.0061,76341.0,76335.0,0.00035163]
[1731168494773,0.07902035,76341.0,76340.0,0.065466]
[1731168494976,0.16608035,76341.0,76340.0,0.065466]
[1731168497486,0.19210033,76341.0,76340.0,0.065466]
[1731168497684,0.16608035,76341.0,76340.0,0.065466]
[1731168498777,0.19202258,76341.0,76340.0,0.065466]
[1731168499280,0.16608035,76341.0,76340.0,0.065466]
[1731168500484,0.2390007,76341.0,76340.0,0.065466]
[1731168501179,0.16608035,76341.0,76340.0,0.065466]
[1731168501488,0.19249674,76341.0,76340.0,0.065466]
[1731168504187,0.16608035,76341.0,76340.0,0.065466]
[1731168508886,0.19219191,76341.0,76340.0,0.065466]
[1731168509086,0.065466,76340.0,76338.0,0.06537259]
[1731168509388,0.065468,76338.0,76337.0,0.06537259]
[1731168509581,0.23742026,76338.0,76335.0,0.06582163]
[1731168509778,0.02611156,76337.0,76336.0,0.08253071]
[1731168510279,0.09158056,76337.0,76336.0,0.08253071]